bitfinex/quotes_ETHUSD_20220305
["timestamp","ask_amount","ask_price","bid_price","bid_amount"]
[1646489468401,0.00302773,2639.9,2638.7,0.02087211]
[1646489468599,0.00302773,2639.9,2638.7,1.22197211]
[1646489468801,0.00302773,2639.9,2638.8,3.5]
[1646489469601,0.00302773,2639.9,2638.8,5.047]
[1646489469602,0.00302788,2639.5,2638.8,5.047]
[1646489470205,0.00302788,2639.5,2638.8,5.4258]
[1646489470504,0.00173286,2640.3,2638.9,12.85257504]
[1646489470703,0.00302795,2639.3,2639.0,17.1373]
[1646489471104,0.00302795,2639.3,2639.0,18.1373]
[1646489471740,0.00173286,2640.3,2639.9,1.05270177]
[1646489471941,0.00173286,2640.6,2639.9,1.05270177]
[1646489472144,1.00173286,2640.7,2639.9,1.05270177]
[1646489472340,0.00173286,2640.7,2639.9,1.05270177]
[1646489472542,0.01213074,2640.8,2639.9,1.05270177]
[1646489473045,0.00302416,2640.4,2639.9,1.05270177]
[1646489473454,0.00302416,2640.4,2640.3,1.15686665]
[1646489474047,0.01213074,2640.8,2640.3,1.15686665]
[1646489474248,8.6992616,2641.6,2640.3,1.15686665]
[1646489474249,0.0250012,2641.5,2640.3,1.15686665]
[1646489474452,0.00302414,2640.5,2640.3,1.15686665]
[1646489475292,0.0250012,2641.5,2640.8,0.87335781]
[1646489475493,0.01209466,2640.9,2640.8,0.87335781]
[1646489476496,0.0250012,2641.5,2640.8,4.37335781]
[1646489476696,0.00826744,2641.4,2641.2,1.04582995]
[1646489477698,0.0250012,2641.5,2641.2,1.04582995]
[1646489477996,0.00206717,2641.4,2641.2,1.04582995]
[1646489478849,0.0250012,2641.5,2641.2,1.04582995]
[1646489479039,0.00206717,2641.4,2641.2,1.04582995]
[1646489479441,0.00206717,2641.4,2640.8,3.53326652]
[1646489479442,0.00206717,2641.4,2640.8,0.0165525]
[1646489479848,0.86873449,2641.3,2640.8,0.0165525]
[1646489480244,3.5,2641.2,2640.8,0.0165525]
[1646489480445,3.50302979,2641.2,2640.8,0.0165525]
[1646489480644,4.45302979,2641.2,2640.8,0.0165525]
[1646489481844,0.95302979,2641.2,2640.8,0.0165525]
[1646489482243,0.89790161,2640.9,2640.8,0.0165525]
[1646489484092,0.89790161,2640.9,2640.1,0.25]
[1646489484298,0.89962824,2640.9,2639.8,1.5682]
[1646489485393,0.89962824,2640.9,2640.0,1.20030369]
[1646489485394,0.91174667,2640.9,2640.0,1.20030369]
[1646489486198,0.89962824,2640.9,2640.0,1.20030369]
[1646489486451,0.00172663,2640.9,2640.0,1.20030369]
[1646489486651,0.01211829,2641.0,2640.0,1.20030369]
[1646489487253,0.00172663,2641.1,2640.0,1.20030369]
[1646489487552,0.00172663,2641.1,2639.8,4.0096979]
[1646489487553,0.01211821,2641.0,2640.6,1.22815623]
[1646489488554,0.0250012,2641.5,2640.6,1.22815623]
[1646489488754,0.01514721,2641.3,2640.6,1.22815623]
[1646489489555,0.01514721,2641.3,2641.2,1.02040161]
[1646489489855,0.0250012,2641.5,2641.2,1.02040161]
[1646489490107,0.00292959,2641.3,2641.2,1.02040161]
[1646489490513,0.00292959,2641.3,2640.8,4.1121]
[1646489490911,0.0250012,2641.5,2640.8,4.1121]
[1646489491112,0.00292967,2641.3,2640.8,4.1121]
[1646489491513,0.00292967,2641.3,2640.8,4.108408]
[1646489491710,0.00292967,2641.3,2640.8,1.1465]
[1646489491911,0.00292967,2641.3,2640.6,1.03136069]
[1646489492112,1.18695131,2641.5,2640.6,4.53136069]
[1646489492311,0.00292967,2641.3,2640.6,4.53136069]
[1646489492515,0.00292967,2641.3,2640.6,1.03136069]
[1646489492712,0.00292967,2641.3,2640.7,3.5]
[1646489492911,0.00292967,2641.3,2640.6,1.03136069]
[1646489493111,0.00292967,2641.3,2640.7,3.5]
[1646489493311,0.0250012,2641.5,2640.6,1.03136069]
[1646489493511,0.00283438,2641.3,2640.6,1.03136069]
[1646489494548,0.03633811,2641.5,2640.5,2.9059]
[1646489494549,1.23400248,2641.4,2640.5,2.9059]
[1646489494756,1.23400248,2641.4,2640.2,1.1671]
[1646489494757,3.50456101,2641.3,2640.2,1.1671]
[1646489494951,3.50456101,2641.3,2640.2,4.6671]
[1646489495151,1.23389278,2641.2,2640.2,4.6671]
[1646489495356,3.50172663,2641.1,2640.2,4.6671]
[1646489495552,3.50172663,2641.1,2640.1,2.6389]
[1646489495753,3.50172663,2641.1,2640.1,0.25]
[1646489495754,1.19015876,2640.8,2640.1,0.25]
[1646489495954,1.19188539,2640.8,2639.9,2.3252445]
[1646489496155,1.19188539,2640.8,2639.9,5.8252445]
[1646489497587,1.19188539,2640.8,2639.9,2.3252445]
[1646489498393,1.19188539,2640.8,2640.0,3.5]
[1646489498595,0.00172663,2640.8,2640.0,3.5]
[1646489498894,0.01142331,2640.9,2640.0,3.5]
[1646489499495,0.00172663,2641.1,2640.0,3.5]
[1646489499694,0.01140391,2641.0,2640.0,3.5]
[1646489499894,1.23726992,2640.9,2640.0,3.5]
[1646489500097,0.00172663,2640.8,2639.9,2.3252445]
[1646489500295,0.00172663,2640.8,2640.0,3.5]
[1646489500696,0.00172663,2640.8,2639.9,2.3252445]
[1646489500895,1.23899655,2640.8,2639.9,2.3252445]
[1646489501098,0.00172663,2640.8,2639.9,2.3252445]
[1646489501343,1.241325,2640.8,2639.9,2.3252445]
[1646489501547,1.23959837,2640.7,2640.0,3.5]
[1646489501747,0.00172663,2640.8,2640.0,3.5]
[1646489502349,1.24131487,2640.8,2640.0,3.5]
[1646489503251,1.23958824,2640.7,2640.0,3.5]
[1646489503549,1.23958824,2640.6,2639.9,2.3252445]
[1646489503850,1.23958824,2640.5,2640.0,3.5]
[1646489504049,0.00172663,2640.8,2640.0,3.5]
[1646489504250,0.00172663,2640.8,2640.3,0.90190548]
[1646489504251,1.24534243,2640.8,2640.3,0.90190548]
[1646489504454,0.56343542,2640.2,2639.8,3.5]
[1646489504652,0.56343542,2640.2,2639.9,1.35082364]
[1646489504851,0.56343542,2640.2,2640.0,3.5]
[1646489505097,0.56343542,2640.2,2639.9,1.04526795]
[1646489505892,0.46343542,2640.2,2639.9,1.04526795]
[1646489506298,0.46343542,2640.2,2640.0,0.30821324]
[1646489515702,0.46343542,2640.2,2639.7,0.55726216]
[1646489515703,1.23656699,2640.1,2639.7,0.55726216]
[1646489515900,1.23656699,2640.1,2639.8,0.30290851]
[1646489516743,1.23656699,2640.1,2639.8,1.31738377]
[1646489516942,1.23656699,2640.1,2639.9,0.30290851]
[1646489519052,0.46343542,2640.2,2639.9,0.30290851]
[1646489519351,3.542e-05,2640.2,2639.9,0.84990851]
[1646489519551,3.542e-05,2640.2,2640.0,0.3788]
[1646489519751,3.542e-05,2640.2,2640.1,0.547]
[1646489519951,3.542e-05,2640.2,2640.1,1.53533215]
[1646489520200,3.542e-05,2640.2,2640.1,13.44413215]
[1646489520397,3.542e-05,2640.2,2640.1,12.75870851]
[1646489520596,3.542e-05,2640.2,2640.1,13.75870851]
[1646489520796,3.542e-05,2640.2,2640.1,14.93220851]
[1646489520998,3.542e-05,2640.2,2640.1,18.43220851]
[1646489522005,3.542e-05,2640.2,2640.1,19.128277]
[1646489522205,3.542e-05,2640.2,2640.1,18.43220851]
[1646489523409,3.542e-05,2640.2,2640.1,19.22571882]
[1646489523863,3.542e-05,2640.2,2640.1,18.43220851]
[1646489524261,0.29440033,2641.4,2640.2,5.0]
[1646489524460,0.29440033,2641.4,2640.4,3.5]
[1646489524659,1.52656625,2641.4,2640.9,1.01148793]
[1646489525059,1.52656625,2641.4,2641.0,0.30919086]
[1646489525262,1.23216592,2641.4,2641.1,0.30912515]
[1646489525464,1.23216592,2641.3,2640.9,0.51680496]
[1646489525659,0.0250012,2641.5,2641.0,0.31835962]
[1646489525660,1.23216592,2641.2,2641.0,0.31835962]
[1646489525864,1.23216592,2641.1,2640.9,0.51680496]
[1646489526064,0.0250012,2641.5,2640.9,0.51680496]
[1646489528497,0.00285196,2641.4,2640.9,0.51680496]
[1646489528897,0.00285196,2641.4,2640.7,0.55832575]
[1646489529102,0.00285196,2641.4,2640.8,3.5]
[1646489529499,0.02672436,2641.5,2640.8,3.5]
[1646489529799,0.00291246,2641.4,2640.8,3.5]
[1646489530199,0.00291246,2641.4,2640.7,1.65942984]
[1646489530602,0.0250012,2641.5,2640.7,1.65573784]
[1646489531000,0.00291246,2641.4,2640.7,1.65573784]
[1646489531846,1.04962571,2641.4,2640.7,1.65573784]
[1646489532046,1.05253817,2641.4,2640.7,0.55463375]
[1646489533046,1.04962571,2641.4,2640.7,0.55463375]
[1646489533250,1.0524615,2641.4,2640.7,0.55463375]
[1646489534149,0.0250012,2641.5,2640.7,0.55463375]
[1646489534349,0.7172652,2641.5,2640.7,0.55463375]
[1646489534555,0.00283579,2641.4,2640.7,0.55463375]
[1646489534753,0.69509979,2641.4,2640.7,0.55463375]
[1646489535397,0.692264,2641.4,2640.7,0.55463375]
[1646489535798,0.69509979,2641.4,2640.7,0.55463375]
[1646489536696,0.95211617,2641.5,2640.7,0.55463375]
[1646489536697,1.64438017,2641.5,2640.7,0.55463375]
[1646489536996,0.00285304,2641.4,2640.7,0.55463375]
[1646489537198,0.692264,2641.3,2640.7,0.55463375]
[1646489537397,0.69467423,2641.3,2640.7,0.55463375]
[1646489539148,0.00241023,2641.3,2640.7,0.55463375]
[1646489545897,1.22660344,2641.3,2640.8,0.31536371]
[1646489546342,1.22419321,2641.2,2640.8,0.31536371]
[1646489546543,1.22419321,2641.1,2640.8,0.31536371]
[1646489546745,1.22419321,2641.0,2640.8,0.31536371]
[1646489546944,1.22419321,2640.9,2640.8,0.31536371]
[1646489547145,1.22660344,2640.9,2640.8,0.31536371]
[1646489547344,0.00241023,2640.9,2640.8,0.31536371]
[1646489549444,1.22660344,2640.9,2640.8,0.31536371]
[1646489549645,0.00241023,2640.9,2640.8,0.31536371]
[1646489551201,0.00042373,2640.9,2640.8,0.31536371]
[1646489551797,0.00042373,2640.9,2640.8,0.26536371]
[1646489556847,0.00042373,2640.9,2640.8,1.19116371]
[1646489557446,0.00042373,2640.9,2640.8,2.13803371]
[1646489558294,0.00042373,2640.9,2640.8,2.13174669]
[1646489562142,0.00042373,2640.9,2640.8,13.66174669]
[1646489562344,0.00042373,2640.9,2640.8,14.66174669]
[1646489562546,0.00042373,2640.9,2640.8,15.48714669]
[1646489562748,0.00042373,2640.9,2640.8,4.65270524]
[1646489563551,0.00042373,2640.9,2640.8,16.18270524]
[1646489564253,0.00042373,2640.9,2640.8,16.48714669]
[1646489564450,0.00042373,2640.9,2640.8,4.95714669]
[1646489565600,0.00042373,2640.9,2640.8,18.98714669]
[1646489565802,0.00042373,2640.9,2640.8,19.68270524]
[1646489566004,0.00042373,2640.9,2640.8,8.15270524]
[1646489566604,0.00042373,2640.9,2640.8,19.68270524]
[1646489566808,0.00042373,2640.9,2640.8,8.15270524]
[1646489567204,0.00042373,2640.9,2640.8,3.95714669]
[1646489567408,0.00042373,2640.9,2640.8,4.65270524]
[1646489567605,0.00042373,2640.9,2640.8,16.18270524]
[1646489568105,0.00042373,2640.9,2640.8,3.70583524]
[1646489568307,0.00042373,2640.9,2640.8,2.88043524]
[1646489568945,0.00042373,2640.9,2640.8,13.71487669]
[1646489569946,0.00042373,2640.9,2640.8,14.41043524]
[1646489570145,0.00042373,2640.9,2640.8,2.88043524]
[1646489570346,0.00042373,2640.9,2640.8,1.88043524]
[1646489570545,0.00042373,2640.9,2640.8,2.88043524]
[1646489570746,0.00042373,2640.9,2640.8,13.41043524]
[1646489570948,0.00042373,2640.9,2640.8,13.71487669]
[1646489571451,0.0250012,2641.5,2641.3,0.00037627]
[1646489571855,0.00279075,2641.4,2641.3,0.00037627]
[1646489572251,4.19505475,2641.4,2641.3,0.00037627]
[1646489572449,0.69505475,2641.4,2641.3,0.00037627]
[1646489572903,0.69351414,2641.4,2641.3,0.00037627]
[1646489574303,0.71851534,2641.5,2641.3,0.00037627]
[1646489574702,0.69351414,2641.4,2641.3,0.00037627]
[1646489576946,0.72154653,2641.5,2641.3,0.00037627]
[1646489577346,0.02803239,2641.5,2641.3,0.00037627]
[1646489577547,0.71851534,2641.5,2641.3,0.00037627]
[1646489577750,0.0250012,2641.5,2641.3,0.00037627]
[1646489577950,0.72154652,2641.5,2641.3,0.00037627]
[1646489578351,1.22901052,2641.4,2641.3,0.00037627]
[1646489578751,1.92252466,2641.4,2641.3,0.01535785]
[1646489578951,1.92252466,2641.4,2641.3,0.03049543]
[1646489579451,1.22901052,2641.4,2641.3,0.03049543]
[1646489581196,1.22901052,2641.4,2641.3,0.3440945]
[1646489583948,1.22901052,2641.4,2641.3,0.32911292]
[1646489584951,0.0250012,2641.5,2641.3,0.32911292]
[1646489585147,0.02783416,2641.5,2641.4,0.31359907]
[1646489585347,1.25721295,2641.5,2641.4,2.47238582]
[1646489585952,0.0250012,2641.5,2641.4,2.47238582]
[1646489589002,0.0250012,2641.5,2641.4,2.50243567]
[1646489589603,0.0250012,2641.5,2641.4,3.50243567]
[1646489591007,0.0250012,2641.5,2641.4,2.50243567]
[1646489591449,0.0091407,2641.5,2641.4,3.50243567]
[1646489591649,0.00651137,2641.6,2641.5,2.5]
[1646489591850,0.00651137,2641.6,2641.5,2.81359907]
[1646489591851,0.01755777,2641.6,2641.5,2.81359907]
[1646489592048,0.014708,2641.6,2641.5,2.81359907]
[1646489592249,0.01755777,2641.6,2641.5,5.30725907]
[1646489592449,0.01755777,2641.6,2641.5,4.30725907]
[1646489592654,0.01755777,2641.6,2641.5,6.49295907]
[1646489593052,0.01755777,2641.6,2641.5,7.31113768]
[1646489593254,0.01755777,2641.6,2641.5,6.49295907]
[1646489593255,0.014708,2641.6,2641.5,6.49295907]
[1646489594854,0.014708,2641.6,2641.5,7.49295907]
[1646489595097,0.014708,2641.6,2641.5,6.54629907]
[1646489595300,0.014708,2641.6,2641.5,5.54629907]
[1646489595498,0.014708,2641.6,2641.5,4.99929907]
[1646489595698,0.014708,2641.6,2641.5,2.49929907]
[1646489595902,0.014708,2641.6,2641.5,1.49929907]
[1646489596100,0.014708,2641.6,2641.5,0.31359907]
[1646489597100,0.014708,2641.6,2641.5,0.9258]
[1646489597299,0.014708,2641.6,2641.5,2.40479907]
[1646489597599,0.014708,2641.6,2641.5,2.02599907]
[1646489597805,0.014708,2641.6,2641.5,3.06379077]
[1646489598503,0.014708,2641.6,2641.5,5.06379077]
[1646489598704,0.014708,2641.6,2641.5,5.07890352]
[1646489599359,8e-06,2641.6,2641.5,5.45770352]
[1646489599560,3.12e-05,2641.6,2641.5,22.22334044]
[1646489599761,3.12e-05,2641.6,2641.5,23.04151905]
[1646489599962,3.12e-05,2641.6,2641.5,24.23071905]
[1646489600158,3.12e-05,2641.6,2641.5,20.88834213]
[1646489600362,3.12e-05,2641.6,2641.5,20.07016352]
[1646489600558,3.12e-05,2641.6,2641.5,19.07016352]
[1646489601161,3.12e-05,2641.6,2641.5,20.07016352]
[1646489601358,3.12e-05,2641.6,2641.5,19.07016352]
[1646489601760,3.12e-05,2641.6,2641.5,19.64777893]
[1646489601960,3.12e-05,2641.6,2641.5,8.43223642]
[1646489602160,3.12e-05,2641.6,2641.5,6.79236893]
[1646489602599,3.12e-05,2641.6,2641.5,6.60316893]
[1646489603009,3.12e-05,2641.6,2641.5,7.29642642]
[1646489603206,3.12e-05,2641.6,2641.5,6.60316893]
[1646489604206,3.12e-05,2641.6,2641.5,6.60218389]
[1646489604607,3.12e-05,2641.6,2641.5,7.29544138]
[1646489605009,0.0146152,2641.6,2641.5,7.29544138]
[1646489605209,0.0146152,2641.6,2641.5,6.60218389]
[1646489605710,0.0146152,2641.6,2641.5,7.29544138]
[1646489605908,0.0146152,2641.6,2641.5,6.60218389]
[1646489606108,0.0146152,2641.6,2641.5,5.60218389]
[1646489607857,0.0146152,2641.6,2641.5,6.60218389]
[1646489608859,0.0132333,2641.6,2641.5,6.60218389]
[1646489609058,0.0132333,2641.6,2641.5,7.29544138]
[1646489609659,0.0132333,2641.6,2641.5,6.60218389]
[1646489611416,0.00036174,2641.8,2641.6,5.0]
[1646489611614,0.00036174,2641.8,2641.7,0.31359907]
[1646489616652,0.00036174,2641.8,2641.7,0.86059907]
[1646489616953,0.00302787,2641.9,2641.7,0.86059907]
[1646489617153,0.0368232,2642.2,2641.8,0.31359907]
[1646489617354,0.0368232,2642.2,2641.9,1.07389221]
[1646489617602,0.0368232,2642.2,2642.0,0.31359907]
[1646489618608,0.03985094,2642.2,2642.0,0.31359907]
[1646489619606,0.0368232,2642.2,2642.0,0.31359907]
[1646489619807,0.03976011,2642.2,2642.0,0.31359907]
[1646489620709,0.0368232,2642.2,2642.0,0.31359907]
[1646489621110,0.03976011,2642.2,2642.0,0.31359907]
[1646489621957,0.0368232,2642.2,2642.0,0.31359907]
[1646489622155,0.03976011,2642.2,2642.0,0.31359907]
[1646489622556,0.03976011,2642.2,2642.0,0.29757353]
[1646489622761,0.03976011,2642.2,2641.9,1.07389221]
[1646489623260,0.0368232,2642.2,2641.9,2.56746221]
[1646489623461,0.03965129,2642.2,2642.1,1.0]
[1646489623664,0.03965129,2642.2,2642.1,1.547]
[1646489623861,0.03965129,2642.2,2642.1,1.57678885]
[1646489624361,0.0368232,2642.2,2642.1,1.57678885]
[1646489625204,0.0368232,2642.2,2642.1,0.02978885]
[1646489631557,0.00783592,2642.2,2642.1,0.02978885]
[1646489636453,0.00783592,2642.2,2642.1,0.72304634]
[1646489637251,0.01700528,2642.2,2642.1,0.72304634]
[1646489637855,0.01700528,2642.2,2642.1,1.96964634]
[1646489640506,0.01700528,2642.2,2642.1,1.27638885]
[1646489641107,0.01700528,2642.2,2642.1,4.77638885]
[1646489641305,0.01700528,2642.2,2642.1,1.27638885]
[1646489641805,0.01700528,2642.2,2642.1,1.96964634]
[1646489642006,0.01700528,2642.2,2642.1,2.36231564]
[1646489642607,1.24818043,2642.2,2642.1,2.67447206]
[1646489643855,1.24818043,2642.2,2642.1,3.36772955]
[1646489644051,1.24818043,2642.2,2642.1,2.67447206]
[1646489644251,1.24818043,2642.2,2642.1,3.06772955]
[1646489644451,1.24818043,2642.2,2642.1,1.98180276]
[1646489645050,0.01700528,2642.2,2642.1,1.98180276]
[1646489645249,0.01700528,2642.2,2642.1,1.66964634]
[1646489645449,0.01700528,2642.2,2642.1,3.03092077]
[1646489645949,0.01700528,2642.2,2642.1,5.83766328]
[1646489646751,0.01700528,2642.2,2642.1,6.83766328]
[1646489648008,0.01700528,2642.2,2642.1,8.31435509]
[1646489648208,0.0189702,2642.6,2642.2,5.017]
[1646489648411,0.05298076,2642.6,2642.4,0.94621]
[1646489648609,0.05298076,2642.6,2642.5,4.35921114]
[1646489648809,0.05298076,2642.6,2642.5,2.75873582]
[1646489649609,0.05298076,2642.6,2642.5,1.75873582]
[1646489649910,0.04917676,2642.6,2642.5,2.75873582]
[1646489650109,0.04917676,2642.6,2642.5,1.75873582]
[1646489650309,0.04917676,2642.6,2642.5,2.75873582]
[1646489650511,0.04917676,2642.6,2642.5,2.45520214]
[1646489650810,0.04917676,2642.6,2642.5,6.25873582]
[1646489651113,0.04917676,2642.6,2642.5,1.75873582]
[1646489651361,0.04917676,2642.6,2642.5,3.45521625]
[1646489651550,0.04917676,2642.6,2642.5,2.45521625]
[1646489651551,0.01036097,2642.6,2642.5,2.45521625]
[1646489651749,0.00815801,2643.1,2642.5,2.45521625]
[1646489651750,0.00751428,2643.0,2642.5,2.45521625]
[1646489651953,1.23163291,2642.9,2642.6,0.31221114]
[1646489652151,1.23163291,2642.9,2642.6,1.00869157]
[1646489652351,1.23163291,2642.9,2642.6,0.31221114]
[1646489653556,1.23367061,2642.9,2642.6,0.31221114]
[1646489654357,1.23163291,2642.9,2642.6,0.31221114]
[1646489654759,1.23367061,2642.9,2642.6,0.31221114]
[1646489655404,1.23367061,2642.9,2642.7,0.94628]
[1646489655705,0.00751428,2643.0,2642.8,0.31221114]
[1646489655905,0.00751428,2643.0,2642.9,0.93970121]
[1646489656104,1.23866483,2643.0,2642.9,1.25191235]
[1646489656507,0.00751428,2643.0,2642.9,1.25191235]
[1646489657306,3.80751428,2643.0,2642.9,1.25191235]
[1646489658510,3.80751428,2643.0,2642.9,2.00771235]
[1646489658711,3.80751428,2643.0,2642.9,6.08621363]
[1646489658951,3.80396728,2643.0,2642.9,6.08621363]
[1646489659153,3.80396728,2643.0,2642.9,7.08621363]
[1646489660252,3.80396728,2643.0,2642.9,7.08252263]
[1646489660452,1.76782224,2643.0,2642.9,7.08252263]
[1646489660853,1.76782224,2643.0,2642.9,7.62952263]
[1646489661455,1.76782224,2643.0,2642.9,8.62952263]
[1646489661852,1.76782224,2643.0,2642.9,8.32600306]
[1646489662055,1.66782224,2643.0,2642.9,8.32600306]
[1646489662257,1.61782224,2643.0,2642.9,8.32600306]
[1646489663410,1.61782224,2643.0,2642.9,7.62952263]
[1646489664210,1.61782224,2643.0,2642.9,8.32389098]
[1646489664610,1.61782224,2643.0,2642.9,7.62952263]
[1646489665212,1.61782224,2643.0,2642.9,8.32388272]
[1646489665410,1.61782224,2643.0,2642.9,3.12952263]
[1646489665611,1.61782224,2643.0,2642.9,7.62952263]
[1646489666011,1.61782224,2643.0,2642.9,4.12952263]
[1646489666453,1.61782224,2643.0,2642.9,7.62952263]
[1646489667552,1.61782224,2643.0,2642.9,4.12952263]
[1646489668757,1.61782224,2643.0,2642.9,7.62952263]
[1646489669156,1.56782224,2643.0,2642.9,7.62952263]
[1646489669960,1.06782224,2643.0,2642.9,7.62952263]
[1646489671004,1.06782224,2643.0,2642.9,4.11905744]
[1646489671603,1.06782224,2643.0,2642.9,4.1166872]
[1646489671604,0.63256665,2643.0,2642.9,4.1166872]
[1646489672204,0.63256665,2643.0,2642.9,8.31104729]
[1646489672404,0.63256665,2643.0,2642.9,9.31104729]
[1646489672608,0.63256665,2643.0,2642.9,8.6166872]
[1646489673007,0.63256665,2643.0,2642.9,9.31104729]
[1646489673860,0.63256665,2643.0,2642.9,5.81104729]
[1646489675156,0.63256665,2643.0,2642.9,9.31104729]
[1646489677256,6.665e-05,2643.0,2642.9,9.31104729]
[1646489677456,6.665e-05,2643.0,2642.9,10.51194729]
[1646489677709,6.665e-05,2643.0,2642.9,9.8175872]
[1646489678408,6.665e-05,2643.0,2642.9,10.51090499]
[1646489678608,6.665e-05,2643.0,2642.9,9.58535997]
[1646489681110,6.665e-05,2643.0,2642.9,8.89204218]
[1646489681958,6.665e-05,2643.0,2642.9,4.39204218]
[1646489682159,6.665e-05,2643.0,2642.9,2.08924218]
[1646489682360,6.665e-05,2643.0,2642.9,0.88834218]
[1646489682759,0.00281776,2643.1,2642.9,0.88834218]
[1646489682961,0.00281776,2643.1,2643.0,0.3098409]
[1646489683360,0.014839,2643.4,2643.0,0.3098409]
[1646489683558,0.014839,2643.4,2643.1,2.39537777]
[1646489683761,0.014839,2643.4,2643.2,0.3098409]
[1646489683960,0.014839,2643.4,2643.3,0.3098409]
[1646489684160,0.014839,2643.4,2643.1,0.14237777]
[1646489684363,0.01114,2643.4,2643.2,1.08978465]
[1646489685606,0.00996043,2643.4,2643.2,1.08978465]
[1646489686003,0.01280699,2643.4,2643.2,1.08978465]
[1646489686403,0.01280699,2643.4,2643.2,2.08978465]
[1646489687006,0.00996043,2643.4,2643.2,2.08978465]
[1646489687210,0.01280049,2643.4,2643.2,1.0]
[1646489688212,0.00996043,2643.4,2643.2,1.0]
[1646489688409,0.01280049,2643.4,2643.2,1.0]
[1646489689254,0.00996043,2643.4,2643.2,1.0]
[1646489689456,0.01280049,2643.4,2643.2,1.0]
[1646489689654,0.00284006,2643.4,2643.3,3.5]
[1646489689856,0.02255763,2643.4,2643.3,3.5]
[1646489690258,0.02255763,2643.4,2643.2,1.547]
[1646489690456,0.01971757,2643.4,2643.2,1.547]
[1646489691559,0.011066,2643.4,2643.2,1.547]
[1646489691960,0.01390752,2643.4,2643.2,2.24031779]
[1646489692813,0.011066,2643.4,2643.2,2.24031779]
[1646489693013,0.011066,2643.4,2643.3,0.69331779]
[1646489693313,0.01390752,2643.4,2643.3,0.69331779]
[1646489693515,0.01390752,2643.4,2643.2,1.547]
[1646489693713,0.01390752,2643.4,2643.1,1.71782983]
[1646489694114,0.011066,2643.4,2643.1,1.71782983]
[1646489694314,0.0139072,2643.4,2643.1,1.71782983]
[1646489694916,3.80334234,2643.5,2643.1,1.71782983]
[1646489697559,3.80334234,2643.5,2643.2,0.69331779]
[1646489699162,3.80636541,2643.5,2643.2,0.69331779]
[1646489699963,3.5,2643.4,2643.2,0.69331779]
[1646489700206,3.80334234,2643.5,2643.1,0.69331779]
[1646489700407,3.80636541,2643.5,2643.1,0.69331779]
[1646489701006,1.00332423,2643.4,2643.1,0.69331779]
[1646489701419,1.00332423,2643.4,2643.0,0.69331779]
[1646489701809,1.00332423,2643.4,2642.9,0.57850128]
[1646489701810,1.04275937,2643.4,2643.1,0.69331779]
[1646489702009,1.04275937,2643.4,2643.0,0.69331779]
[1646489702412,1.04275937,2643.4,2643.1,0.69331779]
[1646489703311,0.03943514,2643.4,2643.1,0.69331779]
[1646489703712,0.03943514,2643.4,2643.0,0.69331779]
[1646489704160,1.24055349,2643.3,2643.0,0.99775192]
[1646489704561,1.24055349,2643.3,2643.1,0.99775192]
[1646489704761,1.24055349,2643.3,2643.1,0.69331779]
[1646489704962,1.24055349,2643.3,2643.2,0.30443413]
[1646489705160,1.24055349,2643.3,2643.0,0.99775192]
[1646489705362,1.24055349,2643.3,2643.1,0.30443413]
[1646489705963,1.24055349,2643.3,2643.1,0.69331779]
[1646489706162,1.24055349,2643.3,2643.2,0.30443413]
[1646489706362,1.24055349,2643.3,2643.0,0.99775192]
[1646489708216,2.23667131,2643.3,2643.0,0.99775192]
[1646489708419,1.24055349,2643.2,2643.0,0.99775192]
[1646489708815,1.24055349,2643.1,2643.0,0.99775192]
[1646489709016,1.24055349,2643.3,2643.0,0.99775192]
[1646489709218,1.24055349,2643.3,2643.2,0.74887584]
[1646489709416,1.24055349,2643.3,2643.2,1.05330997]
[1646489711665,0.03943514,2643.4,2643.2,1.05330997]
[1646489711865,0.03943514,2643.4,2643.3,0.30440704]
[1646489712663,1.28040158,2643.4,2643.3,0.30440704]
[1646489712864,0.03943514,2643.4,2643.3,0.30440704]
[1646489713164,0.03943514,2643.4,2643.3,0.99772483]
[1646489713165,1.28054494,2643.4,2643.3,0.99772483]
[1646489713364,2.14864042,2643.5,2643.3,0.30440704]
[1646489713565,2.15148036,2643.5,2643.4,0.69689532]
[1646489713763,3.37353992,2643.5,2643.4,0.69689532]
[1646489713962,3.37340736,2643.5,2643.4,0.69689532]
[1646489714663,3.37056742,2643.5,2643.4,1.44577116]
[1646489714865,3.37056742,2643.5,2643.4,1.7501782]
[1646489715916,3.37056742,2643.5,2643.4,1.7462802]
[1646489716617,2.09864042,2643.5,2643.4,1.7462802]
[1646489716816,2.10105065,2643.5,2643.4,1.05328288]
[1646489717019,2.09735165,2643.5,2643.4,1.05328288]
[1646489717915,2.09735165,2643.5,2643.4,1.04937788]
[1646489719559,2.09735165,2643.5,2643.4,2.15506304]
[1646489719958,2.09735165,2643.5,2643.4,2.52169796]
[1646489720157,2.09735165,2643.5,2643.4,1.22193996]
[1646489720358,2.09735165,2643.5,2643.4,1.59247988]
[1646489720758,2.09735165,2643.5,2643.4,2.52169796]
[1646489720957,2.09735165,2643.5,2643.4,3.46766796]
[1646489721762,2.09735165,2643.5,2643.4,2.53844988]
[1646489722166,2.09735165,2643.5,2643.4,4.46766796]
[1646489722364,0.00284077,2643.6,2643.5,2.0973]
[1646489722604,0.00284077,2643.6,2643.5,3.94870704]
[1646489722809,0.01136137,2644.0,2643.5,4.94870704]
[1646489723009,0.002418,2644.1,2643.6,2.17822843]
[1646489723209,0.01377925,2644.1,2643.7,1.77950843]
[1646489723409,0.01377925,2644.1,2643.8,0.30440704]
[1646489723609,0.01377925,2644.1,2644.0,0.89181473]
[1646489723809,0.01377925,2644.1,2644.0,1.74322177]
[1646489724010,0.01066973,2644.4,2644.0,1.74322177]
[1646489724209,0.01066973,2644.4,2644.1,0.30440704]
[1646489724210,1.27000499,2644.3,2644.1,0.30440704]
[1646489724409,1.27000499,2644.3,2644.2,0.85140704]
[1646489725110,1.27000499,2644.3,2644.2,1.22193996]
[1646489725311,0.01066973,2644.4,2644.2,1.22193996]
[1646489725510,0.01269828,2644.4,2644.3,0.30440704]
[1646489725711,1.28250601,2644.4,2644.3,0.67494696]
[1646489726557,1.28047746,2644.4,2644.3,0.67494696]
[1646489726757,0.01066973,2644.4,2644.3,0.67494696]
[1646489729164,0.0082232,2644.6,2644.3,0.67494696]
[1646489729165,0.00302275,2644.5,2644.3,0.67494696]
[1646489729366,0.00302275,2644.5,2644.4,0.30440704]
[1646489729565,1.27107905,2644.5,2644.4,0.30440704]
[1646489729766,1.27107905,2644.5,2644.4,0.85140704]
[1646489729767,0.00302275,2644.5,2644.4,0.85140704]
[1646489730215,0.0082232,2644.6,2644.4,1.91904172]
[1646489730413,7.49756936,2644.9,2644.5,0.67493996]
[1646489730414,7.4862837,2644.9,2644.5,0.67493996]
[1646489730614,1.26798235,2644.8,2644.6,0.30440704]
[1646489730814,0.04092649,2644.7,2644.5,0.37053292]
[1646489731011,1.26798235,2644.6,2644.5,0.37053292]
[1646489731212,4.80834042,2644.6,2644.5,0.37053292]
[1646489731414,1.30834042,2644.6,2644.5,0.37053292]
[1646489731814,2.19542263,2644.6,2644.5,0.37053292]
[1646489732016,5.69542263,2644.6,2644.5,0.37053292]